fUST/lending_fUST_20250910
["ID","MTS","AMOUNT","RATE_DAILY","PERIOD"]
[384490269,1757441445201,-483.60140807,0.00013698,2]
[384490271,1757441445210,-480.0,0.00013698,2]
[384490273,1757441445219,-480.0,0.00013698,2]
[384490275,1757441445228,-480.0,0.00013698,2]
[384490277,1757441445237,-480.0,0.00013698,2]
[384490279,1757441445247,-673.03,0.00013698,2]
[384490281,1757441445256,-480.0,0.00013698,2]
[384490283,1757441445265,-480.0,0.00013698,2]
[384490285,1757441445274,-480.0,0.00013698,2]
[384490287,1757441445283,-480.0,0.00013698,2]
[384490289,1757441445293,-480.0,0.00013698,2]
[384490291,1757441445302,-480.0,0.00013698,2]
[384490293,1757441445312,-480.0,0.00013698,2]
[384490295,1757441445321,-480.0,0.00013698,2]
[384490297,1757441445330,-480.0,0.00013698,2]
[384490299,1757441445339,-480.0,0.00013698,2]
[384490301,1757441445349,-480.0,0.00013698,2]
[384490303,1757441445358,-492.76,0.00013698,2]
[384490305,1757441445368,-277.17821912,0.00013698,2]
[384490308,1757441445380,-2675.81877481,0.00013698,2]
[384490310,1757441445395,-6208.79300607,0.00013698,2]
[384490312,1757441445405,-480.0,0.00013698,2]
[384490314,1757441445414,-480.0,0.00013698,2]
[384490316,1757441445424,-480.0,0.00013698,2]
[384490318,1757441445433,-2789.43,0.00013698,2]
[384490320,1757441445442,-480.0,0.00013698,2]
[384490322,1757441445451,-480.0,0.00013698,2]
[384490324,1757441445460,-480.0,0.00013698,2]
[384490326,1757441445469,-480.0,0.00013698,2]
[384490328,1757441445478,-539.67,0.00013698,2]
[384490330,1757441445487,-308.350076,0.00013698,2]
[384490332,1757441445497,-308.350076,0.00013698,2]
[384490334,1757441445506,-308.350076,0.00013698,2]
[384490336,1757441445516,-151.0,0.00013698,2]
[384490338,1757441445525,-151.0,0.00013698,2]
[384490341,1757441445535,-151.0,0.00013698,2]
[384490343,1757441445544,-308.350076,0.00013698,2]
[384490345,1757441445554,-308.350076,0.00013698,2]
[384490347,1757441445563,-308.350076,0.00013698,2]
[384490349,1757441445573,-308.350076,0.00013698,2]
[384490367,1757441445707,-308.350076,0.00013698,2]
[384490369,1757441445717,-308.350076,0.00013698,2]
[384490371,1757441445726,-308.350076,0.00013698,2]
[384490373,1757441445735,-308.350076,0.00013698,2]
[384490375,1757441445745,-480.0,0.00013698,2]
[384490377,1757441445754,-308.350076,0.00013698,2]
[384490379,1757441445762,-124.81218677,0.00013698,2]
[384490381,1757441445774,-355.18781323,0.00013698,2]
[384490383,1757441445784,-480.0,0.00013698,2]
[384490385,1757441445793,-480.0,0.00013698,2]
[384490387,1757441445802,-1267.48,0.00013698,2]
[384490389,1757441445810,-480.0,0.00013698,2]
[384490391,1757441445820,-480.0,0.00013698,2]
[384490392,1757441445829,-599.84531099,0.00013698,2]
[384490394,1757441445838,-4098.9,0.00013698,2]
[384490396,1757441445848,-1367.27660282,0.00013698,2]
[384490399,1757441445859,-3721.12339718,0.00013698,2]
[384490401,1757441445868,-487.06637419,0.00013698,2]
[384490403,1757441445877,-1014.54,0.00013698,2]
[384490405,1757441445886,-774.64,0.00013698,2]
[384490407,1757441445895,-1227.82,0.00013698,2]
[384490409,1757441445904,-480.0,0.00013698,2]
[384490411,1757441445913,-480.0,0.00013698,2]
[384490413,1757441445922,-480.0,0.00013698,2]
[384490415,1757441445931,-1007.25,0.00013698,2]
[384490417,1757441445940,-480.0,0.00013698,2]
[384490419,1757441445949,-1674.83,0.00013698,2]
[384490421,1757441445959,-480.0,0.00013698,2]
[384490423,1757441445968,-480.0,0.00013698,2]
[384490424,1757441445981,-1022.43,0.00013698,2]
[384490426,1757441445991,-480.0,0.00013698,2]
[384490428,1757441446000,-490.79,0.00013698,2]
[384490430,1757441446010,-573.68,0.00013698,2]
[384490433,1757441446021,-480.0,0.00013698,2]
[384490435,1757441446031,-480.0,0.00013698,2]
[384490437,1757441446042,-480.0,0.00013698,2]
[384490439,1757441446054,-529.285283,0.00013698,2]
[384490441,1757441446064,-360.00197232,0.00013698,2]
[384490468,1757441446319,-169.28331068,0.00013698,2]
[384490470,1757441446328,-529.285283,0.00013698,2]
[384490472,1757441446338,-529.285283,0.00013698,2]
[384490474,1757441446347,-529.285283,0.00013698,2]
[384490476,1757441446356,-529.285283,0.00013698,2]
[384490478,1757441446367,-480.0,0.00013698,2]
[384490480,1757441446376,-529.285283,0.00013698,2]
[384490482,1757441446385,-480.0,0.00013698,2]
[384490485,1757441446394,-529.285283,0.00013698,2]
[384490487,1757441446404,-529.285283,0.00013698,2]
[384490489,1757441446413,-480.0,0.00013698,2]
[384490491,1757441446422,-529.285283,0.00013698,2]
[384490493,1757441446431,-529.285283,0.00013698,2]
[384490495,1757441446441,-529.285283,0.00013698,2]
[384490497,1757441446449,-427.1610709,0.00013698,2]
[384490499,1757441446464,-371.45465753,0.00013698,2]
[384490502,1757441446476,-578.42427157,0.00013698,2]
[384490504,1757441446485,-480.0,0.00013698,2]
[384490506,1757441446494,-1054.71009,0.00013699,2]
[384490508,1757441446504,-151.0,0.00013699,2]
[384490510,1757441446513,-151.0,0.00013699,2]
[384490512,1757441446522,-151.0,0.00013699,2]
[384490514,1757441446531,-151.0,0.00013699,2]
[384490516,1757441446542,-283.419958,0.00013699,2]
[384490518,1757441446552,-151.0,0.00013699,2]
[384490520,1757441446561,-151.0,0.00013699,2]
[384490522,1757441446571,-151.0,0.00013699,2]
[384490524,1757441446580,-151.0,0.00013699,2]
[384490526,1757441446590,-2105.41764886,0.00013736,2]
[384490528,1757441446599,-151.0,0.00013772,2]
[384490530,1757441446608,-151.0,0.00013772,2]
[384490532,1757441446617,-151.0,0.00013772,2]
[384490534,1757441446626,-151.0,0.00013772,2]
[384490536,1757441446636,-151.0,0.00013772,2]
[384490538,1757441446645,-304.60276,0.00013772,2]
[384490540,1757441446653,-304.60276,0.00013772,2]
[384490542,1757441446662,-304.60276,0.00013772,2]
[384490544,1757441446672,-304.60276,0.00013772,2]
[384490546,1757441446681,-160.0,0.00013772,2]
[384490548,1757441446690,-530.79566296,0.00013772,2]
[384490550,1757441446699,-160.0,0.00013772,2]
[384490552,1757441446708,-417.15472785,0.00013772,2]
[384490554,1757441446721,-217.65034598,0.00013772,2]
[384490555,1757441446730,-160.0,0.00013772,2]
[384490557,1757441446739,-846.80158213,0.00013772,2]
[384490559,1757441446748,-233.05759179,0.00013772,2]
[384490561,1757441446758,-203.28455737,0.00013772,2]
[384490563,1757441446767,-2183.31810187,0.00013791,2]
[384490565,1757441446777,-2264.10087164,0.00013846,2]
[384490567,1757441446786,-976.0,0.00013858,2]
[384490569,1757441446795,-634.0,0.00013858,2]
[384490571,1757441446805,-2154.0,0.00013858,2]
[384490573,1757441446814,-300.0,0.00013866,2]
[384490575,1757441446824,-300.0,0.00013866,2]
[384490577,1757441446833,-300.0,0.00013866,2]
[384490579,1757441446843,-300.0,0.00013866,2]
[384490581,1757441446852,-300.0,0.00013866,2]
[384490583,1757441446861,-300.0,0.00013866,2]
[384490585,1757441446870,-300.0,0.00013866,2]
[384490588,1757441446883,-300.0,0.00013866,2]
[384490590,1757441446896,-300.0,0.00013866,2]
[384490593,1757441446909,-300.0,0.00013866,2]
[384490595,1757441446921,-300.0,0.00013866,2]
[384490597,1757441446932,-300.0,0.00013866,2]
[384490599,1757441446945,-300.0,0.00013866,2]
[384490602,1757441446958,-300.0,0.00013866,2]
[384490604,1757441446973,-300.0,0.00013866,2]
[384490606,1757441446987,-600.0,0.00013866,2]
[384490609,1757441446999,-1514.30605838,0.00013901,2]
[384490611,1757441447012,-3209.0194028,0.00013913,2]
[384490613,1757441447026,-194.0,0.00013915,2]
[384490616,1757441447039,-169.58336765,0.00013957,2]
[384490618,1757441447051,-303.76515095,0.00013971,2]
[384490620,1757441447064,-480.0,0.00013972,2]
[384490623,1757441447077,-650.48,0.00013972,2]
[384490625,1757441447090,-300.03,0.00013972,2]
[384490627,1757441447103,-480.0,0.00013972,2]
[384490630,1757441447115,-480.0,0.00013972,2]
[384490632,1757441447126,-480.0,0.00013972,2]
[384490634,1757441447136,-480.0,0.00013972,2]
[384490636,1757441447149,-480.0,0.00013972,2]
[384490638,1757441447161,-480.0,0.00013972,2]
[384490641,1757441447173,-480.0,0.00013972,2]
[384490643,1757441447186,-480.0,0.00013972,2]
[384490645,1757441447198,-557.17,0.00013972,2]
[384490648,1757441447212,-480.0,0.00013972,2]
[384490650,1757441447225,-480.0,0.00013972,2]
[384490653,1757441447238,-480.0,0.00013972,2]
[384490655,1757441447249,-480.0,0.00013972,2]
[384490657,1757441447260,-480.0,0.00013972,2]
[384490659,1757441447270,-480.0,0.00013972,2]
[384490662,1757441447281,-480.0,0.00013972,2]
[384490664,1757441447295,-480.0,0.00013972,2]
[384490666,1757441447309,-624.68435729,0.00013972,2]
[384490668,1757441447320,-480.0,0.00013972,2]
[384490671,1757441447331,-480.0,0.00013972,2]
[384490672,1757441447342,-480.0,0.00013972,2]
[384490673,1757441447355,-480.0,0.00013972,2]
[384490674,1757441447366,-480.0,0.00013972,2]
[384490675,1757441447377,-622.16,0.00013972,2]
[384490676,1757441447387,-480.0,0.00013972,2]
[384490677,1757441447399,-480.0,0.00013972,2]
[384490678,1757441447410,-480.0,0.00013972,2]
[384490679,1757441447422,-530.4,0.00013972,2]
[384490680,1757441447434,-480.0,0.00013972,2]
[384490681,1757441447445,-480.0,0.00013972,2]
[384490682,1757441447457,-176.34761,0.00013972,2]
[384490683,1757441447468,-623.62,0.00013972,2]
[384490684,1757441447479,-480.0,0.00013972,2]
[384490686,1757441447490,-480.0,0.00013972,2]
[384490688,1757441447502,-480.0,0.00013972,2]
[384490691,1757441447513,-480.0,0.00013972,2]
[384490693,1757441447524,-480.0,0.00013972,2]
[384490695,1757441447535,-480.0,0.00013972,2]
[384490697,1757441447546,-480.0,0.00013972,2]
[384490699,1757441447558,-480.0,0.00013972,2]
[384490701,1757441447569,-480.0,0.00013972,2]
[384490704,1757441447580,-966.67,0.00013972,2]
[384490706,1757441447591,-480.0,0.00013972,2]
[384490708,1757441447602,-591.98,0.00013972,2]
[384490710,1757441447613,-151.0,0.00013972,2]
[384490712,1757441447625,-152.382567,0.00013972,2]
[384490715,1757441447636,-480.0,0.00013972,2]
[384490717,1757441447648,-151.0,0.00013972,2]
[384490719,1757441447660,-151.0,0.00013972,2]
[384490721,1757441447671,-376.78,0.00013972,2]
[384490724,1757441447682,-480.0,0.00013972,2]
[384490726,1757441447694,-151.0,0.00013972,2]
[384490728,1757441447705,-151.0,0.00013972,2]
[384490730,1757441447716,-151.0,0.00013972,2]
[384490733,1757441447728,-151.0,0.00013972,2]
[384490735,1757441447739,-480.0,0.00013972,2]
[384490737,1757441447750,-151.0,0.00013972,2]
[384490739,1757441447760,-151.0,0.00013972,2]
[384490742,1757441447772,-151.0,0.00013972,2]
[384490744,1757441447782,-151.0,0.00013972,2]
[384490746,1757441447794,-267.395123,0.00013972,2]
[384490748,1757441447805,-151.0,0.00013972,2]
[384490750,1757441447816,-151.0,0.00013972,2]
[384490752,1757441447827,-236.599808,0.00013972,2]
[384490755,1757441447838,-995.93,0.00013972,2]
[384490757,1757441447849,-480.0,0.00013972,2]
[384490759,1757441447860,-258.21287581,0.00013972,2]
[384490761,1757441447871,-331.63466773,0.00013972,2]
[384490763,1757441447882,-318.714,0.00013972,2]
[384490766,1757441447893,-497.35,0.00013972,2]
[384490768,1757441447905,-1000.0,0.00013972,2]
[384490770,1757441447916,-1000.0,0.00013972,2]
[384490772,1757441447928,-1000.0,0.00013972,2]
[384490774,1757441447940,-1000.0,0.00013972,2]
[384490777,1757441447951,-320.0,0.00013972,2]
[384490779,1757441447962,-152.461785,0.00013972,2]
[384490781,1757441447974,-480.0,0.00013972,2]
[384490784,1757441447988,-829.06,0.00013972,2]
[384490786,1757441447999,-480.0,0.00013972,2]
[384490788,1757441448011,-480.0,0.00013972,2]
[384490790,1757441448021,-480.0,0.00013972,2]
[384490792,1757441448030,-480.0,0.00013972,2]
[384490794,1757441448040,-844.41,0.00013972,2]
[384490796,1757441448049,-480.0,0.00013972,2]
[384490798,1757441448060,-151.0,0.00013972,2]
[384490800,1757441448070,-151.0,0.00013972,2]
[384490802,1757441448080,-480.0,0.00013972,2]
[384490804,1757441448090,-169.60671576,0.00013972,2]
[384490806,1757441448100,-597.44,0.00013972,2]
[384490808,1757441448109,-480.0,0.00013972,2]
[384490810,1757441448119,-480.0,0.00013972,2]
[384490812,1757441448129,-480.0,0.00013972,2]
[384490814,1757441448139,-1461.59,0.00013972,2]
[384490816,1757441448148,-480.0,0.00013972,2]
[384490818,1757441448160,-540.23919134,0.00013972,2]
[384490820,1757441448170,-407.9283612,0.00013972,2]
[384490823,1757441448180,-151.0,0.00013972,2]
[384490824,1757441448189,-415.47734393,0.00013972,2]
[384490825,1757441448198,-582.45,0.00013972,2]
[384490826,1757441448208,-480.0,0.00013972,2]
[384490827,1757441448217,-711.93,0.00013972,2]
[384490828,1757441448228,-480.0,0.00013972,2]
[384490829,1757441448237,-480.0,0.00013972,2]
[384490830,1757441448246,-796.76,0.00013972,2]
[384490831,1757441448256,-480.0,0.00013972,2]
[384490832,1757441448265,-480.0,0.00013972,2]
[384490833,1757441448275,-480.0,0.00013972,2]
[384490834,1757441448509,-480.0,0.00013972,2]
[384490835,1757441448525,-151.0,0.00013972,2]
[384490836,1757441448535,-161.07568,0.00013972,2]
[384490837,1757441448545,-480.0,0.00013972,2]
[384490838,1757441448555,-298.61212,0.00013972,2]
[384490839,1757441448564,-480.0,0.00013972,2]
[384490840,1757441448574,-480.0,0.00013972,2]
[384490842,1757441448583,-480.0,0.00013972,2]
[384490844,1757441448593,-480.0,0.00013972,2]
[384490846,1757441448602,-480.0,0.00013972,2]
[384490848,1757441448611,-151.0,0.00013972,2]
[384490850,1757441448621,-151.0,0.00013972,2]
[384490852,1757441448630,-151.0,0.00013972,2]
[384490854,1757441448640,-187.169427,0.00013972,2]
[384490856,1757441448649,-480.0,0.00013972,2]
[384490858,1757441448659,-480.0,0.00013972,2]
[384490860,1757441448668,-480.0,0.00013972,2]
[384490862,1757441448678,-480.0,0.00013972,2]
[384490864,1757441448687,-480.0,0.00013972,2]
[384490865,1757441448696,-480.0,0.00013972,2]
[384490866,1757441448705,-565.36,0.00013972,2]
[384490867,1757441448715,-480.0,0.00013972,2]
[384490868,1757441448724,-492.48,0.00013972,2]
[384490869,1757441448734,-480.0,0.00013972,2]
[384490870,1757441448743,-480.0,0.00013972,2]
[384490871,1757441448753,-714.64,0.00013972,2]
[384490872,1757441448762,-480.0,0.00013972,2]
[384490873,1757441448772,-480.0,0.00013972,2]
[384490874,1757441448781,-480.0,0.00013972,2]
[384490875,1757441448791,-480.0,0.00013972,2]
[384490876,1757441448801,-381.46220789,0.00013972,2]
[384490877,1757441448812,-16.73265917,0.00013972,2]
[384490912,1757441466646,58678.3360023,0.00013,2]
[384490913,1757441476786,116621.73073474,0.00013,2]
[384490919,1757441547691,175.552699,0.00012816,2]
[384490920,1757441548466,175.552699,0.00012816,120]
[384490938,1757441666100,-800.0,0.00013321,2]
[384490939,1757441673912,588.51722508,0.00013321,2]
[384490941,1757441719473,10000.01,0.00012627,2]
[384490942,1757441719496,7526.3859194,0.00012627,2]
[384490943,1757441738478,177.18,0.00012329,2]
[384490944,1757441742692,800.0,0.00013321,2]
[384490945,1757441749260,885.93,0.00012329,2]
[384490946,1757441759418,423.46403098,0.00013321,2]
[384490947,1757441767924,800.0,0.00013321,2]
[384490948,1757441785056,250.0,0.0001243,2]
[384490949,1757441787325,-430.99681294,0.00013321,2]
[384490951,1757441792069,800.0,0.00013321,2]
[384490952,1757441799942,153.38377271,0.00013321,2]
[384490953,1757441800671,179.52,0.00012329,2]
[384490954,1757441816098,800.0,0.00013321,2]
[384490955,1757441838922,800.0,0.00013321,2]
[384490956,1757441874801,-800.0,0.00013321,2]
[384490957,1757441894898,-600.0,0.00013188,2]
[384490958,1757441894937,-800.0,0.00013321,2]
[384490959,1757441969303,213.03,0.00012329,2]
[384490960,1757441971580,300.0,0.00013321,2]
[384490961,1757441980082,355.06,0.00012329,2]
[384490962,1757441990847,295.88,0.00012329,2]
[384490964,1757442001386,246.57,0.00012329,2]
[384490965,1757442011823,205.48,0.00012329,2]
[384490966,1757442022661,171.23,0.00012329,2]
[384490967,1757442033186,856.17,0.00012329,2]
[384490973,1757442248554,207.0,0.00025,120]
[384490974,1757442255730,2528.24980063,0.00013141,2]
[384490975,1757442279777,851.73484839,0.00013141,2]
[384491000,1757442447466,2511.0,0.00027,120]
[384491003,1757442463090,506.05480397,0.0001261,2]
[384491004,1757442465128,2022.19499666,0.0001261,2]
[384491012,1757442523210,-300.0,0.00013272,2]
[384491013,1757442523241,-456.76843252,0.00013273,2]
[384491014,1757442523271,-1827.07373007,0.00013273,2]
[384491015,1757442523301,-725.52069805,0.00013273,2]
[384491016,1757442523507,-3381.28427872,0.00013273,2]
[384491017,1757442523537,-1127.5702252,0.0001362,2]
[384491018,1757442523567,-182.30099216,0.0001366,2]
[384491019,1757442523624,-617.69900784,0.0001366,2]
[384491020,1757442523652,-800.0,0.00013664,2]
[384491021,1757442523680,-500.0,0.00013673,2]
[384491022,1757442523708,-454.57052764,0.00013681,2]
[384491023,1757442523736,-800.0,0.00013684,2]
[384491026,1757442542474,300.0,0.00013689,2]
[384491032,1757442586831,365.81634415,0.00013677,2]
[384491035,1757442602363,300.0,0.00013689,2]
[384491036,1757442615010,2030.296672,0.0001369,2]
[384491037,1757442624395,384.29196512,0.00013597,2]
[384491163,1757442636443,275.06594777,0.00013653,2]
[384491164,1757442636465,524.93405223,0.00013653,2]
[384491173,1757442638339,-4032.65871364,0.0001369,2]
[384491518,1757442643351,-14571.22498636,0.0001369,2]
[384491520,1757442643361,-214.11918731,0.0001369,2]
[384491522,1757442643371,-500.0,0.00013697,2]
[384491524,1757442643380,-500.0,0.00013697,2]
[384491525,1757442643389,-500.0,0.00013697,2]
[384491526,1757442643398,-500.0,0.00013697,2]
[384491527,1757442643407,-500.0,0.00013697,2]
[384491528,1757442643416,-500.0,0.00013697,2]
[384491529,1757442643426,-500.0,0.00013697,2]
[384491530,1757442643435,-500.0,0.00013697,2]
[384491531,1757442643445,-500.0,0.00013697,2]
[384491532,1757442643454,-500.0,0.00013697,2]
[384491533,1757442643463,-500.0,0.00013697,2]
[384491534,1757442643473,-500.0,0.00013697,2]
[384491535,1757442643482,-500.0,0.00013697,2]
[384491536,1757442643491,-500.0,0.00013697,2]
[384491537,1757442643500,-500.0,0.00013697,2]
[384491538,1757442643509,-500.0,0.00013697,2]
[384491539,1757442643518,-500.0,0.00013697,2]
[384491541,1757442643528,-500.0,0.00013697,2]
[384491543,1757442643537,-500.0,0.00013697,2]
[384491545,1757442643546,-500.0,0.00013697,2]
[384491547,1757442643555,-500.0,0.00013697,2]
[384491549,1757442643564,-500.0,0.00013697,2]
[384491551,1757442643574,-500.0,0.00013697,2]
[384491553,1757442643583,-500.0,0.00013697,2]
[384491555,1757442643592,-500.0,0.00013697,2]
[384491558,1757442643602,-182.78206391,0.00013697,2]
[384491561,1757442643611,-500.0,0.00013697,2]
[384491564,1757442643620,-500.0,0.00013697,2]
[384491567,1757442643630,-500.0,0.00013697,2]
[384491569,1757442643639,-500.0,0.00013697,2]
[384491572,1757442643648,-248.58948283,0.00013697,2]
[384491574,1757442643658,-303.89447442,0.00013697,2]
[384491576,1757442643667,-500.0,0.00013697,2]
[384491578,1757442643677,-500.0,0.00013697,2]
[384491581,1757442643686,-434.77174118,0.00013697,2]
[384491584,1757442643696,-500.0,0.00013697,2]
[384491586,1757442643705,-568.03065988,0.00013697,2]
[384491588,1757442643714,-356.50180014,0.00013697,2]
[384491590,1757442643724,-500.0,0.00013697,2]
[384491592,1757442643734,-257.74371124,0.00013697,2]
[384491594,1757442643743,-500.0,0.00013697,2]
[384491596,1757442643752,-500.0,0.00013697,2]
[384491598,1757442643762,-500.0,0.00013697,2]
[384491600,1757442643771,-500.0,0.00013697,2]
[384491602,1757442643780,-500.0,0.00013697,2]
[384491604,1757442643789,-500.0,0.00013697,2]
[384491606,1757442643798,-500.0,0.00013697,2]
[384491608,1757442643808,-500.0,0.00013697,2]
[384491610,1757442643817,-270.45348307,0.00013697,2]
[384491612,1757442643826,-216.47823999,0.00013697,2]
[384491614,1757442643835,-500.0,0.00013697,2]
[384491616,1757442643844,-500.0,0.00013697,2]
[384491618,1757442643854,-216.47823999,0.00013697,2]
[384491620,1757442643863,-500.0,0.00013697,2]
[384491622,1757442643872,-467.17053675,0.00013697,2]
[384491624,1757442643882,-380.62925957,0.00013697,2]
[384491626,1757442643890,-500.0,0.00013697,2]
[384491628,1757442643900,-500.00000001,0.00013697,2]
[384491630,1757442643909,-153.96260763,0.00013697,2]
[384491632,1757442643919,-500.0,0.00013697,2]
[384491634,1757442643928,-500.0,0.00013697,2]
[384491636,1757442643937,-500.0,0.00013697,2]
[384491638,1757442643947,-500.0,0.00013697,2]
[384491640,1757442643956,-153.96260763,0.00013697,2]
[384491642,1757442643965,-480.0,0.00013698,2]
[384491644,1757442643974,-480.0,0.00013698,2]
[384491646,1757442643984,-480.0,0.00013698,2]
[384491648,1757442643994,-480.0,0.00013698,2]
[384491650,1757442644004,-480.0,0.00013698,2]
[384491652,1757442644014,-480.0,0.00013698,2]
[384491654,1757442644024,-480.0,0.00013698,2]
[384491656,1757442644033,-391.44244014,0.00013698,2]
[384491658,1757442644043,-480.0,0.00013698,2]
[384491660,1757442644053,-480.0,0.00013698,2]
[384491662,1757442644063,-480.0,0.00013698,2]
[384491664,1757442644072,-480.0,0.00013698,2]
[384491666,1757442644081,-480.0,0.00013698,2]
[384491668,1757442644091,-480.0,0.00013698,2]
[384491670,1757442644100,-480.0,0.00013698,2]
[384491672,1757442644109,-480.0,0.00013698,2]
[384491674,1757442644119,-480.0,0.00013698,2]
[384491676,1757442644128,-480.0,0.00013698,2]
[384491679,1757442644139,-480.0,0.00013698,2]
[384491681,1757442644149,-480.0,0.00013698,2]
[384491683,1757442644158,-726.09,0.00013698,2]
[384491685,1757442644167,-480.0,0.00013698,2]
[384491687,1757442644176,-480.0,0.00013698,2]
[384491689,1757442644185,-480.0,0.00013698,2]
[384491691,1757442644198,-480.0,0.00013698,2]
[384491693,1757442644208,-480.0,0.00013698,2]
[384491695,1757442644217,-491.44,0.00013698,2]
[384491697,1757442644226,-480.0,0.00013698,2]
[384491699,1757442644235,-480.0,0.00013698,2]
[384491701,1757442644244,-492.63788114,0.00013698,2]
[384491703,1757442644254,-480.0,0.00013698,2]
[384491705,1757442644263,-480.0,0.00013698,2]
[384491707,1757442644273,-480.0,0.00013698,2]
[384491709,1757442644283,-480.0,0.00013698,2]
[384491711,1757442644292,-480.0,0.00013698,2]
[384491713,1757442644301,-480.0,0.00013698,2]
[384491715,1757442644311,-480.0,0.00013698,2]
[384491717,1757442644320,-480.0,0.00013698,2]
[384491719,1757442644329,-529.22,0.00013698,2]
[384491721,1757442644339,-151.0,0.00013698,2]
[384491723,1757442644349,-480.0,0.00013698,2]
[384491725,1757442644360,-480.0,0.00013698,2]
[384491727,1757442644369,-480.0,0.00013698,2]
[384491729,1757442644379,-480.0,0.00013698,2]
[384491731,1757442644389,-218.53838148,0.00013698,2]
[384491733,1757442644399,-480.0,0.00013698,2]
[384491735,1757442644408,-941.74,0.00013698,2]
[384491737,1757442644417,-151.0,0.00013698,2]
[384491739,1757442644427,-151.0,0.00013698,2]
[384491741,1757442644437,-220.59590479,0.00013698,2]
[384491743,1757442644447,-480.0,0.00013698,2]
[384491745,1757442644456,-590.26,0.00013698,2]
[384491747,1757442644465,-971.65,0.00013698,2]
[384491749,1757442644475,-479.41827981,0.00013698,2]
[384491751,1757442644485,-480.0,0.00013698,2]
[384491753,1757442644494,-480.0,0.00013698,2]
[384491755,1757442644504,-480.0,0.00013698,2]
[384491757,1757442644513,-281.400848,0.00013698,2]
[384491759,1757442644523,-480.0,0.00013698,2]
[384491761,1757442644533,-480.0,0.00013698,2]
[384491763,1757442644543,-480.0,0.00013698,2]
[384491765,1757442644553,-480.0,0.00013698,2]
[384491767,1757442644563,-480.0,0.00013698,2]
[384491769,1757442644572,-826.54,0.00013698,2]
[384491771,1757442644582,-480.0,0.00013698,2]
[384491773,1757442644591,-480.0,0.00013698,2]
[384491775,1757442644601,-1428.78,0.00013698,2]
[384491777,1757442644610,-845.53,0.00013698,2]
[384491779,1757442644620,-480.0,0.00013698,2]
[384491781,1757442644629,-582.24,0.00013698,2]
[384491783,1757442644639,-587.66,0.00013698,2]
[384491785,1757442644648,-151.0,0.00013698,2]
[384491787,1757442644658,-480.0,0.00013698,2]
[384491789,1757442644668,-480.0,0.00013698,2]
[384491791,1757442644677,-480.0,0.00013698,2]
[384491793,1757442644687,-247.04,0.00013698,2]
[384491795,1757442644696,-797.52,0.00013698,2]
[384491797,1757442644708,-480.0,0.00013698,2]
[384491799,1757442644717,-480.0,0.00013698,2]
[384491801,1757442644726,-480.0,0.00013698,2]
[384491803,1757442644736,-480.0,0.00013698,2]
[384491805,1757442644746,-480.0,0.00013698,2]
[384491807,1757442644756,-480.0,0.00013698,2]
[384491809,1757442644766,-480.0,0.00013698,2]